Cogmind - Beta 14 @@@ ROGUE MODE // 2024.09.07 @ 09:38:08 Player: Unit6544 Result: Destroyed by H-61 Shepherd with Heavy Assault Cannon Performance ------------- Evolutions (2) 1000 Regions Visited (3) 600 Robots Destroyed (49) 245 Value Destroyed (1406) 1406 Prototype IDs (0) 0 Alien Tech Used (0) 0 Bonus (70) 70 TOTAL SCORE: 3321 Bonus ------- High Alert Combat Kills 70 Cogmind --------- Core Integrity 0/550 Matter 300/300 Energy 100/100 System Corruption 2% Temperature Cool (0) Movement Core (350) Ox6 Location -8/Materials Parts ------- > --- POWER (1) -------- (None) > --- PROPULSION (4) --- (None) > --- UTILITY (4) ------ Large Storage Unit Advanced Targeting Computer > --- WEAPON (2) ------- (None) > --- INVENTORY (15) --- Deuterium Engine Armored Treads Improved Heat Sink Melee Analysis Suite ECM Suite Improved Power Shielding Insulated Plating Medium Laser Medium Laser Medium Laser Shotgun Grenade Launcher Peak State ------------ > --- POWER ------------ Deuterium Engine > --- PROPULSION ------- Aluminum Leg Aluminum Leg Aluminum Leg Improved Aluminum Leg > --- UTILITY ---------- Targeting Computer Advanced Targeting Computer Insulated Plating Insulated Plating > --- WEAPON ----------- Medium Laser Minigun > --- INVENTORY -------- Medium Laser Medium Laser Beam Rifle Grenade Launcher [Rating: 22] Favorites ----------- Power Ion Engine Engine Ion Engine Power Core Light Nuclear Core Propulsion Improved Treads Treads Improved Treads Leg Aluminum Leg Wheel Wheel Utility Hardened Light Armor Plating Device Shield Generator Storage Small Storage Unit Processor Advanced Targeting Computer Protection Hardened Light Armor Plating Weapon Spread Laser Energy Gun Spread Laser Ballistic Gun Minigun Launcher Grenade Launcher Build | -11 -10 -9 -8 ------- Run | Yrd Mat Mat Mat Slots Evolved 4 | . . 2 2 Power . | . . . . Propulsion 2 | . . 1 1 Utility 2 | . . 1 1 Weapon . | . . . . Parts Attached 54 | 5 13 12 24 Power 6 | 1 1 2 2 Engine 5 | 1 1 1 2 Core 1 | . . 1 . Reactor . | . . . . Propulsion 11 | 2 2 1 6 Treads 4 | . 2 1 1 Leg 5 | . . . 5 Wheel 2 | 2 . . . Hover . | . . . . Flight . | . . . . Utility 13 | 1 2 4 6 Device 2 | . 1 1 . Storage 2 | 1 . . 1 Processor 2 | . . . 2 Hackware . | . . . . Protection 7 | . 1 3 3 Artifact . | . . . . Weapon 24 | 1 8 5 10 Energy Gun 10 | . 5 2 3 Energy Cannon . | . . . . Ballistic Gun 9 | 1 1 2 5 Ballistic Cannon . | . . . . Launcher 5 | . 2 1 2 Special Weapon . | . . . . Impact Weapon . | . . . . Slashing Weapon . | . . . . Piercing Weapon . | . . . . Special Melee Weapon . | . . . . Unidentified Prototypes . | . . . . Parts Lost 20 | . . 3 17 Power 2 | . . . 2 Propulsion 6 | . . . 6 Utility 8 | . . 3 5 Weapon 4 | . . . 4 Highest Loss Streak 8 | . . 2 8 To Critical Strikes . | . . . . Average Slot Usage (%) 90 | . 98 98 81 Engine 9 | . 14 10 6 Core 1 | . . . 2 Treads 16 | . 21 32 6 Leg 11 | . . . 23 Wheel 2 | . 6 . . Device 2 | . 3 8 . Storage 8 | . 14 9 3 Processor 4 | . . . 9 Protection 11 | . 10 13 11 Energy Gun 14 | . 20 18 8 Ballistic Gun 6 | . 4 3 8 Launcher 1 | . 2 . 1 Peak Build Rating 22 | 5 13 18 22 Average Rating 14 | 3 10 16 17 On Entrance 8 | . 5 13 16 Naked Turns . | . . . . Heaviest Build 43 | 12 21 23 43 Greatest Support 69 | 26 46 69 69 Greatest Overweight (x) 8 | . . . 8 Average Overweight (x) . | . . . . Largest Inventory Capacity 15 | 8 8 8 15 Average Capacity 8 | 7 8 7 9 Most Carried 12 | 4 8 8 12 Average Carried 6 | 2 6 6 6 Final Capacity 15 | 8 8 5 15 Final Carried 12 | 4 8 5 12 Class Distribution -------------------- 84% | Mutant 15% | Scavenger-Mutant Dominant Class ---------------- Mutant | -10/Materials Mutant | -9/Materials Mutant | -8/Materials Resources | -11 -10 -9 -8 ----------- Run | Yrd Mat Mat Mat Matter Collected 1178 | 152 287 247 492 Remotely 86 | . 86 . . Salvage Created 1410 | 62 356 357 635 Parts 80 | 1 21 26 32 Haulers Intercepted 2 | . 1 . 1 Recyclers Shooed . | . . . . Parts Field Recycled . | . . . . Retrieved Matter . | . . . . Parts Self-Destructed . | . . . . Prevented . | . . . . Kills | -11 -10 -9 -8 ------- Run | Yrd Mat Mat Mat Combat Hostiles Destroyed 38 | . 9 13 16 Guns 22 | . 5 11 6 AOE 14 | . 3 2 9 Classes Destroyed 12 | 1 5 2 4 Worker 2 | . 2 . . Tunneler 1 | . . . 1 Hauler 2 | . 1 . 1 Recycler 1 | 1 . . . Mechanic 1 | . . . 1 Watcher 4 | . 3 . 1 Swarmer 11 | . 3 2 6 Grunt 20 | . 6 9 5 Brawler 1 | . . . 1 Duelist 2 | . . 1 1 Sentry 2 | . . 1 1 Specialist 2 | . . . 2 Best Kill Streak 8 | 1 8 3 5 Combat Bots Only 3 | . 3 3 3 Max Kills in Single Turn 3 | 1 3 1 3 Gunslinging . | . . . . Exploded 3 | . 3 1 3 Melee . | . . . . Uniques/NPCs Destroyed . | . . . . Combat | -11 -10 -9 -8 -------- Run | Yrd Mat Mat Mat Hostile Shots Fired 301 | . 25 77 199 Missed 69 | . 4 12 53 Damage Taken 3760 | . 249 931 2580 Core 949 | . 40 339 570 Absorbed by Shields 93 | . . 93 . Redirected to Shielding 11 | . . . 11 Ignored by Resistances 2 | . . . 2 Regen/Repaired (Parts) 37 | . . . 37 Core Remaining (%) 66 | 100 84 15 . Volleys Fired 115 | 2 23 30 60 Largest 2 | 1 2 2 2 Hottest 130 | 20 130 130 100 Shots Fired 205 | 2 42 49 112 Gun 193 | 2 37 47 107 Cannon . | . . . . Launcher 12 | . 5 2 5 Special . | . . . . Kinetic 62 | 2 1 7 52 Thermal 131 | . 36 40 55 Explosive 12 | . 5 2 5 Electromagnetic . | . . . . Robot Hit Streak 20 | 2 8 8 20 Robot Miss Streak 9 | . 9 5 5 Penetration Max . | . . . . Secondary Targets 4 | . . 2 2 Max Gunslinging Chain 1 | . . 1 1 Shots Hit Robots 147 | 2 26 42 77 Core Hits 119 | 2 29 55 33 Critical Kills . | . . . . Critical Parts Destroyed . | . . . . Critical Strikes 7 | . 4 . 3 Burn 7 | . 4 . 3 Melee Attacks . | . . . . Impact . | . . . . Slashing . | . . . . Piercing . | . . . . Sneak Attacks . | . . . . Combat Hostiles . | . . . . Follow-up Attacks . | . . . . Damage Inflicted 3197 | 25 807 695 1670 Guns 2075 | 25 334 570 1146 Cannons . | . . . . Explosions 1110 | . 461 125 524 Melee . | . . . . Ramming 12 | . 12 . . Kinetic 648 | 25 . 54 569 Thermal 1427 | . 334 516 577 Explosive 1110 | . 461 125 524 Electromagnetic . | . . . . Impact . | . . . . Slashing . | . . . . Piercing . | . . . . Highest Corruption 2 | . . . 2 Average Corruption 1 | . . . 1 Corruption Purged . | . . . . Corruption Blocked . | . . . . Effects 8 | . . . 8 Message Errors 2 | . . . 2 Matter Fused 2 | . . . 2 Heat Flow Errors 1 | . . . 1 Data Loss (major) 1 | . . . 1 Alerts 1 | . . . 1 Weapon Failures 1 | . . . 1 Overload Shots . | . . . . Overflow Damage 37 | . 34 . 3 Projectiles . | . . . . Explosions 37 | . 34 . 3 Melee . | . . . . Knockbacks . | . . . . Impact . | . . . . Kinetic . | . . . . Secondary . | . . . . Self-Inflicted Damage 16 | . . . 16 Shots 1 | . . . 1 Rammed 2 | . 2 . . Targets Rammed 2 | . 2 . . Kicked . | . . . . Crushed . | . . . . Highest Temperature 712 | . 375 712 587 Average Temperature 200 | . 153 311 149 Received Heat Transfer 1344 | . 138 333 873 Effects 53 | . 2 41 10 Shutdowns 8 | . . 5 3 Energy Bleed 7 | . 1 5 1 Interference 6 | . . 4 2 Matter Decay 5 | . . 4 1 Short Circuit 2 | . . 1 1 Damage (minor) 8 | . 1 6 1 Damage (major) 13 | . . 13 . Damage (core) 4 | . . 3 1 Siege Activations . | . . . . Robots Corrupted . | . . . . Combat Hostiles . | . . . . Parts Fried . | . . . . Impact Corruptions . | . . . . Robots Melted 2 | . 1 . 1 Combat Hostiles 2 | . 1 . 1 Parts Melted 9 | . 4 1 4 Heat Transferred 3656 | . 1119 650 1887 Parts Sabotaged . | . . . . Parts Stolen . | . . . . Parts Stripped . | . . . . Power Chain Reactions . | . . . . Alert | -11 -10 -9 -8 ------- Run | Yrd Mat Mat Mat Peak Influence 536 | 5 254 352 536 Initial 148 | . 3 43 148 Average 244 | 2 131 188 357 Maximum Alert Level 2 | . 1 1 2 Low Security (%) 39 | 100 67 65 6 Level 1 45 | . 32 34 61 Level 2 15 | . . . 32 Level 3 . | . . . . Level 4 . | . . . . Level 5 . | . . . . High Security . | . . . . Max Security . | . . . . Squads Dispatched 6 | . . . 6 Investigation . | . . . . Extermination . | . . . . Reinforcement 3 | . . . 3 Assault . | . . . . Garrison 3 | . . . 3 Intercept . | . . . . Searches Triggered . | . . . . Construction Impeded . | . . . . Haulers Reinforced . | . . . . Active Scanning Responses . | . . . . Cargo Convoy Interrupts . | . . . . Stealth | -11 -10 -9 -8 --------- Run | Yrd Mat Mat Mat Distress Signals 3 | . 1 . 2 Communications Jammed . | . . . . Distress Signals . | . . . . Times Spotted 58 | . 13 16 29 Peak Tracking Total 9 | . 5 7 9 Tactical Retreats 2 | . 1 . 1 Traps | -11 -10 -9 -8 ------- Run | Yrd Mat Mat Mat Traps Triggered 1 | . . . 1 Indirectly . | . . . . Trap Hack Attempts . | . . . . Triggered . | . . . . Disarmed . | . . . . Reprogrammed . | . . . . Reused . | . . . . Traps Extracted . | . . . . Installed . | . . . . Triggered . | . . . . Machines | -11 -10 -9 -8 ---------- Run | Yrd Mat Mat Mat Machines Disabled 6 | . . . 6 Max in Single Turn 2 | . . . 2 Machines Repaired . | . . . . Machines Dismantled . | . . . . Machines Sabotaged . | . . . . Overloaded Fab Kills . | . . . . Hacking | -11 -10 -9 -8 --------- Run | Yrd Mat Mat Mat Machines Accessed 2 | . . . 2 Terminals 1 | . . . 1 Fabricators . | . . . . Repair Stations 1 | . . . 1 Recycling Units . | . . . . Scanalyzers . | . . . . Garrison Access . | . . . . Total Hacks 4 | . . . 4 Successful 3 | . . . 3 Failed 1 | . . . 1 Catastrophic . | . . . . Database Lockouts . | . . . . Manual . | . . . . Terminals 1 | . . . 1 Fabricators . | . . . . Repair Stations 3 | . . . 3 Recycling Units . | . . . . Scanalyzers . | . . . . Garrison Access . | . . . . Terminal Hacks 1 | . . . 1 Zone Layout 1 | . . . 1 Fabricator Hacks . | . . . . Repair Station Hacks 2 | . . . 2 Scan Component 1 | . . . 1 Repair 1 | . . . 1 Recycling Unit Hacks . | . . . . Scanalyzer . | . . . . Garrison Access Hacks . | . . . . Unauthorized Hacks . | . . . . Terminals . | . . . . Fabricators . | . . . . Repair Stations . | . . . . Recycling Units . | . . . . Scanalyzers . | . . . . Garrison Access . | . . . . Data Cores Recovered . | . . . . Used . | . . . . Hacking Detections 2 | . . . 2 Full Trace Events 1 | . . . 1 Feedback Events . | . . . . Feedback Blocked . | . . . . Robot Schematics Acquired . | . . . . Robots Built . | . . . . Authchips . | . . . . Time . | . . . . Total Robot Build Rating . | . . . . Part Schematics Acquired . | . . . . Parts Built . | . . . . Authchips . | . . . . Time . | . . . . Total Part Build Rating . | . . . . Parts Repaired 1 | . . . 1 Time 26 | . . . 26 Parts Recycled . | . . . . Recycled Matter . | . . . . Retrieved Matter . | . . . . Retrieved Components . | . . . . Parts Scanalyzed . | . . . . Part Schematics Acquired . | . . . . Parts Damaged . | . . . . Bothacking | -11 -10 -9 -8 ------------ Run | Yrd Mat Mat Mat Used RIF Installer . | . . . . Robots Hacked . | . . . . Non-combat . | . . . . Combat . | . . . . Robot Hacks Applied . | . . . . Relay Couplers Released . | . . . . Fabnet Peak Effective % . | . . . . Robots Rewired . | . . . . Allies Hacked . | . . . . Hacks Repelled . | . . . . Allies | -11 -10 -9 -8 -------- Run | Yrd Mat Mat Mat Total Allies . | . . . . Largest Group . | . . . . Highest-Rated Group . | . . . . Highest-Rated Ally . | . . . . Total Orders . | . . . . Ally Attacks . | . . . . Total Damage . | . . . . Kills . | . . . . Allies Corrupted . | . . . . Allies Melted . | . . . . Intel | -11 -10 -9 -8 ------- Run | Yrd Mat Mat Mat Robot Analysis Total . | . . . . Derelict Logs Recovered . | . . . . Drone Launches . | . . . . Drone Recoveries . | . . . . Exploration | -11 -10 -9 -8 ------------- Run | Yrd Mat Mat Mat Turns Passed 2084 | 42 698 369 975 Spaces Moved 1033 | 32 404 126 471 Core 17 | 11 . . 6 Treads 466 | . 259 126 81 Legs 384 | . . . 384 Wheels 166 | 21 145 . . Hover . | . . . . Flight . | . . . . Fastest Speed 50 | 50 90 160 120 Average Speed 137 | 76 134 160 138 Slowest Speed 450 | 90 160 160 450 Overloaded Moves . | . . . . Propulsion Burnouts . | . . . . Robots Hopped . | . . . . Cave-ins Triggered . | . . . . Exploration Rate (%) 27 | 4 54 14 38 Regions Visited 3 Branch Regions . Pre-discovered Areas . | . . . . Known Exits Taken . | . . . . Unknown Exits Taken 3 | 1 1 1 . Scrap Searched . | . . . . Spaces Dug . | . . . . Terrain Destroyed 72 | . 27 16 29 Melee . | . . . . Projectile . | . . . . AOE 72 | . 27 16 29 Terrain Rammed . | . . . . Walls Destroyed . | . . . . Machines Disabled . | . . . . Actions | -11 -10 -9 -8 --------- Run | Yrd Mat Mat Mat Total 1494 | 47 517 245 685 Wait 209 | . 48 66 95 Move 1030 | 31 403 125 471 Hop . | . . . . Pick Up 61 | 9 17 7 28 Fast Attach . | . . . . Attach 30 | 5 5 6 14 Detach 1 | . . 1 . Swap 24 | . 8 6 10 Drop 22 | . 11 4 7 Fire 115 | 2 23 30 60 Melee . | . . . . Ram . | . . . . Kick . | . . . . Crush 2 | . 2 . . Escape Stasis . | . . . . Rewire . | . . . . Trap . | . . . . Miscellaneous . | . . . . Route ------- -11/Scrapyard -10/Materials (discovered 2 exits: [*Mat] / [*Min]) -9/Materials -8/Materials (discovered 1 exit: [*Fac]) History --------- Turn | Location | Event 29 | -11/Scrapyard | Discovered new exit (range 16) 43 | -11/Scrapyard | Entered Materials 83 | -10/Materials | Discovered new exit (range 16) 301 | -10/Materials | Build established: Mutant 336 | -10/Materials | Discovered new exit (range 4) 741 | -10/Materials | Entered another Materials area 741 | -9/Materials | Evolved 2 slots: Propulsion x1, Utility x1 883 | -9/Materials | Discovered new exit (range 15) 1032 | -9/Materials | Core integrity fell below 50% 1037 | -9/Materials | Core integrity fell below 20% 1110 | -9/Materials | Entered another Materials area 1110 | -8/Materials | Evolved 2 slots: Propulsion x1, Utility x1 1297 | -8/Materials | Garrison activated, responded to threat 1354 | -8/Materials | Core integrity fell below 50% 1383 | -8/Materials | Lost 8 parts (1p3n3u1w) 1656 | -8/Materials | Repaired Grenade Launcher 2048 | -8/Materials | Discovered new exit (range 8) 2079 | -8/Materials | Core integrity fell below 20% 2085 | -8/Materials | Destroyed by H-61 Shepherd with Heavy Assault Cannon Last Messages --------------- H-61 Shepherd calls for reinforcements. ALERT: Hostile activity reported, dispatching reinforcements to area. Deuterium Engine destroyed. Acquired 6 matter. K-01 Serf collects debris. U-05 Engineer builds a Wall. Aluminum Leg destroyed. Hrd. Medium Armor Plating destroyed. Knocked back. Imp. Aluminum Leg destroyed. Atomic Centrifuge disabled. Aluminum Leg destroyed. S-10 Pest destroyed. Targeting Computer destroyed. System corrupted by crushing effect (+1). K-01 Serf collects debris. Shotgun destroyed. Critical hit (Burn: +37). Hpw. Shotgun destroyed. Map ----- +----------------------------------------------------+ | | | | | | | | | | | | | | | #????????????????????????????????????????????????? | | ???????????????????????????????????????????????? | | " ???????????????????????????????????????????????? | | " ""?????????????????????????????????????????????? | | " """ ???????????????????????????????????????????? | | ???????????????????????????????????????????? | | " """????????????????????????????????????????????? | | " """????????????????????????????????????????????? | | ? ""?????????????????????????????????????????????? | | ? ?????????????????????????????????????????????? | | ##+###???????????????????????????????????????????? | | ######??????????????????????????????????????? | | #######????????????????????????????????? | | #???????#####????????????????????? | | ######### #????????????????????? | | ####### ## % # < #????????????????????? | | ## ###?????# %%+ # #????????????????????? | | ?# #???????# ## g gH#### ##????????????? | | ?# #???????# ## !!!kb@% g r ????????? | | ?# #???????# ## !! ;%g % ????????? | | ?#+#???????# ## =!s #% u k ????????? | | ??????????##+##+####;g###u ###+########?????????? | | ??????????# # #??? #???????????????? | | ????? ????# """ "" """ # #????????????????????? | | ? ?????# """ """ """?+ #????????????????????? | | """ ""????# """ """ """?# #????????????????????? | | """ "?????# ?# ????????????????????? | | """ ??????# ! !?? ##???????????????????? | | ???????########+####?? #????????????????????? | | +#?????########### #????? #????????????????????? | | #?????# # #????? #????????????????????? | | #####?# #?#????? #????????????????????? | | #?# #??????? #????????????????????? | | ### +??????? ?????????????????????? | | + """ """ #???????????????????????????????? | | ### """ """ #???????????????????????????????? | | #?# "" """ #???????????????????????????????? | | #?# #???????????????????????????????? | | ####+######## #???????????????????????????? | | #???????????????????????????? | | ????????????????????????? | | % #???????????????????????????? | | %* #???????????????????????????? | +----------------------------------------------------+ Best States ------------- Heat Dissipation 31 Energy Generation 14 Energy Capacity 275 Matter Stores 300 Matter Capacity 300 Sight Range 16 Terrain Scan Density 10 Armor Coverage 300 Resistance: EM 15 Core Shielding 20 Evasion (%) 55 Targeting Accuracy 13 Recoil Reduction 3 Item Schematics ----------------- None Robot Schematics ------------------ None Fabricated ------------ Nothing Alien Tech Used ----------------- None Achievements -------------- None Challenges ------------ None Game ------ Seed SwordDiametricRouter Manual? 0 Play Time 00:26:56 Cumulative 11.3 hours Start 2024.09.06 @ 23:22:13 End 2024.09.07 @ 09:38:08 Sessions 3 Manual Loads 0 Difficulty Rogue Special Mode None Game No. 25 Rogue 25 Adventurer 0 Explorer 0 Win Type - Total 0 Types 0/0/0/0/0/0/0/0/0 Lore% 3 Gallery% 15 Achievement% 18 Wizard Run 0 Options --------- Layout 1 ASCII 0 Keyboard 0 Movement Mouse Keybinds 0 Fullscreen 1 Font 24/Smallcaps Map View 50x40 Zoom Use 0% Tactical HUD 0 Map Filters NONE Filters NONE Steam 1 RUN: d3562d9c-4155-45e7-a2bb-46646e3552e4